[Event "*** SCC Grand Prix: Titled Tuesday Blitz"]
[Site "Chess.com"]
[Date "2020.07.07"]
[Round "1"]
[White "vangulio"]
[Black "sm_sharon"]
[Result "1-0"]
[WhiteElo "2541"]
[BlackElo "2173"]
[TimeControl "180+1"]
[EndTime "10:07:57 PDT"]
[Termination "vangulio won on time"]

1. d4 {[%clk 0:02:57.8]} 1... g6 {[%clk 0:02:59.3]} 2. e4 {[%clk 0:02:54]} 2...
Bg7 {[%clk 0:02:49.7]} 3. Nc3 {[%clk 0:02:51.8]} 3... d6 {[%clk 0:02:48.8]} 4.
Be3 {[%clk 0:02:50.2]} 4... a6 {[%clk 0:02:48.2]} 5. f4 {[%clk 0:02:45.2]} 5...
Nd7 {[%clk 0:02:43.9]} 6. Nf3 {[%clk 0:02:42.8]} 6... b5 {[%clk 0:02:43.4]} 7.
Bd3 {[%clk 0:02:37.7]} 7... c5 {[%clk 0:02:40.8]} 8. O-O {[%clk 0:02:31.7]} 8...
Bb7 {[%clk 0:02:39]} 9. e5 {[%clk 0:02:21.2]} 9... cxd4 {[%clk 0:02:32.6]} 10.
Bxd4 {[%clk 0:02:20.6]} 10... dxe5 {[%clk 0:02:25.8]} 11. fxe5 {[%clk
0:02:20.2]} 11... e6 {[%clk 0:02:18.7]} 12. Ne4 {[%clk 0:02:13.4]} 12... Bxe4
{[%clk 0:02:06.2]} 13. Bxe4 {[%clk 0:02:14.3]} 13... Rb8 {[%clk 0:01:58.6]} 14.
Qe2 {[%clk 0:01:30.9]} 14... Ne7 {[%clk 0:01:49.6]} 15. Rad1 {[%clk 0:01:30.7]}
15... O-O {[%clk 0:01:46.7]} 16. c4 {[%clk 0:01:20.7]} 16... bxc4 {[%clk
0:01:23.1]} 17. Qxc4 {[%clk 0:01:18.6]} 17... Qc8 {[%clk 0:01:23]} 18. Qe2
{[%clk 0:01:05.9]} 18... Nc6 {[%clk 0:01:18.6]} 19. Bxc6 {[%clk 0:00:32.7]}
19... Qxc6 {[%clk 0:01:16]} 20. Rd2 {[%clk 0:00:31.3]} 20... Qb5 {[%clk
0:01:08.2]} 21. Qxb5 {[%clk 0:00:30.2]} 21... Rxb5 {[%clk 0:01:09]} 22. Re1
{[%clk 0:00:30.5]} 22... Rd5 {[%clk 0:01:05.3]} 23. Ree2 {[%clk 0:00:27.9]}
23... Rd8 {[%clk 0:01:04.2]} 24. Bc3 {[%clk 0:00:27.8]} 24... Nxe5 {[%clk
0:00:48.1]} 25. Nxe5 {[%clk 0:00:16.6]} 25... Rxd2 {[%clk 0:00:46.5]} 26. Bxd2
{[%clk 0:00:16.3]} 26... Bxe5 {[%clk 0:00:43.9]} 27. Bg5 {[%clk 0:00:15.6]}
27... Rd1+ {[%clk 0:00:41.3]} 28. Kf2 {[%clk 0:00:15.8]} 28... f6 {[%clk
0:00:33.9]} 29. Be3 {[%clk 0:00:11.8]} 29... Rd3 {[%clk 0:00:28.4]} 30. h3
{[%clk 0:00:10.4]} 30... g5 {[%clk 0:00:28.1]} 31. b3 {[%clk 0:00:09.4]} 31...
h5 {[%clk 0:00:25.7]} 32. Bc1 {[%clk 0:00:08]} 32... h4 {[%clk 0:00:23.6]} 33.
Bd2 {[%clk 0:00:07.4]} 33... Kf7 {[%clk 0:00:22.7]} 34. Be1 {[%clk 0:00:06.9]}
34... Bg3+ {[%clk 0:00:21.4]} 35. Kf1 {[%clk 0:00:06.2]} 35... Rd1 {[%clk
0:00:21.4]} 36. Re3 {[%clk 0:00:06.6]} 36... e5 {[%clk 0:00:18.9]} 37. Re2
{[%clk 0:00:06.8]} 37... Ke6 {[%clk 0:00:18.5]} 38. a4 {[%clk 0:00:07.3]} 38...
Kd5 {[%clk 0:00:18.6]} 39. Rd2+ {[%clk 0:00:07.3]} 39... Rxd2 {[%clk 0:00:18.5]}
40. Bxd2 {[%clk 0:00:08.2]} 40... Kc5 {[%clk 0:00:17.7]} 41. Ke2 {[%clk
0:00:08.5]} 41... Bf4 {[%clk 0:00:17.7]} 42. Be1 {[%clk 0:00:07.9]} 42... Bc1
{[%clk 0:00:17.2]} 43. Kd3 {[%clk 0:00:07.8]} 43... f5 {[%clk 0:00:17]} 44. Bc3
{[%clk 0:00:07.3]} 44... Bf4 {[%clk 0:00:17.1]} 45. b4+ {[%clk 0:00:06.4]} 45...
Kd5 {[%clk 0:00:17.3]} 46. b5 {[%clk 0:00:06.6]} 46... axb5 {[%clk 0:00:18.2]}
47. axb5 {[%clk 0:00:07.1]} 47... e4+ {[%clk 0:00:18.9]} 48. Ke2 {[%clk
0:00:07.1]} 1-0

[Event "*** SCC Grand Prix: Titled Tuesday Blitz"]
[Site "Chess.com"]
[Date "2020.07.07"]
[Round "1"]
[White "Oneofmyturns"]
[Black "chegueps"]
[Result "1-0"]
[WhiteElo "2726"]
[BlackElo "2391"]
[TimeControl "180+1"]
[EndTime "10:08:04 PDT"]
[Termination "Oneofmyturns won by resignation"]

1. d4 {[%clk 0:03:00.9]} 1... d6 {[%clk 0:02:36.1]} 2. e4 {[%clk 0:03:00.5]}
2... Nf6 {[%clk 0:02:35.1]} 3. Nc3 {[%clk 0:03:00.6]} 3... e5 {[%clk 0:02:35.2]}
4. Nf3 {[%clk 0:03:00.4]} 4... Nbd7 {[%clk 0:02:35.6]} 5. Bc4 {[%clk 0:03:01]}
5... Be7 {[%clk 0:02:36.1]} 6. O-O {[%clk 0:03:01.4]} 6... O-O {[%clk
0:02:36.5]} 7. Re1 {[%clk 0:03:01.9]} 7... c6 {[%clk 0:02:36.9]} 8. a4 {[%clk
0:03:02.4]} 8... a5 {[%clk 0:02:37.2]} 9. h3 {[%clk 0:03:01.7]} 9... exd4 {[%clk
0:02:28.1]} 10. Nxd4 {[%clk 0:03:02.6]} 10... Nb6 {[%clk 0:02:28.1]} 11. Bf1
{[%clk 0:03:00]} 11... d5 {[%clk 0:02:27.9]} 12. e5 {[%clk 0:02:57.6]} 12... Ne8
{[%clk 0:02:27.9]} 13. Bf4 {[%clk 0:02:51.4]} 13... g6 {[%clk 0:02:25.6]} 14.
Qf3 {[%clk 0:02:13]} 14... Ng7 {[%clk 0:02:23.9]} 15. Rad1 {[%clk 0:02:13.3]}
15... Bg5 {[%clk 0:02:10.9]} 16. g3 {[%clk 0:02:00]} 16... Qe7 {[%clk
0:01:59.1]} 17. Bxg5 {[%clk 0:01:45.4]} 17... Qxg5 {[%clk 0:02:00]} 18. Kh2
{[%clk 0:01:45.8]} 18... Nf5 {[%clk 0:01:56.6]} 19. Nb3 {[%clk 0:01:40.9]} 19...
h5 {[%clk 0:01:40.1]} 20. Qd3 {[%clk 0:01:29.7]} 20... Nc4 {[%clk 0:01:36.1]}
21. Rb1 {[%clk 0:01:25.3]} 21... h4 {[%clk 0:01:31.1]} 22. g4 {[%clk 0:01:14.1]}
22... Qf4+ {[%clk 0:01:31.1]} 23. Kg2 {[%clk 0:01:10.9]} 23... Nxe5 {[%clk
0:01:12.7]} 24. Qe2 {[%clk 0:01:05.3]} 24... Nxg4 {[%clk 0:00:58.9]} 25. Qxg4
{[%clk 0:01:00.8]} 25... Qd6 {[%clk 0:00:34.8]} 26. Qg5 {[%clk 0:00:45.8]} 26...
Be6 {[%clk 0:00:34.9]} 27. Bd3 {[%clk 0:00:45.9]} 27... Kg7 {[%clk 0:00:33.7]}
28. Bxf5 {[%clk 0:00:44.6]} 28... Bxf5 {[%clk 0:00:34.6]} 29. Nd4 {[%clk
0:00:45]} 29... Bd7 {[%clk 0:00:34.8]} 30. Qe5+ {[%clk 0:00:40.4]} 30... Qxe5
{[%clk 0:00:34.2]} 31. Rxe5 {[%clk 0:00:41.3]} 31... Kf6 {[%clk 0:00:34.1]} 32.
Rbe1 {[%clk 0:00:41.5]} 32... g5 {[%clk 0:00:29.3]} 33. Nb3 {[%clk 0:00:34.9]}
33... b6 {[%clk 0:00:28.7]} 34. f3 {[%clk 0:00:35]} 34... Be6 {[%clk 0:00:18.4]}
35. Nd4 {[%clk 0:00:34.3]} 35... Bd7 {[%clk 0:00:19.1]} 36. b3 {[%clk
0:00:34.6]} 36... Rfc8 {[%clk 0:00:16.9]} 37. Nd1 {[%clk 0:00:33.6]} 37... c5
{[%clk 0:00:13.2]} 38. Rxd5 {[%clk 0:00:33.2]} 38... cxd4 {[%clk 0:00:08.2]} 39.
Rxd7 {[%clk 0:00:33.4]} 39... Rxc2+ {[%clk 0:00:09.1]} 40. Nf2 {[%clk 0:00:34]}
40... Rd2 {[%clk 0:00:08.8]} 41. Re4 {[%clk 0:00:30.9]} 41... Rc8 {[%clk
0:00:07.2]} 42. Rexd4 {[%clk 0:00:31.2]} 42... Re2 {[%clk 0:00:06.7]} 43. Rd2
{[%clk 0:00:30.5]} 43... Re1 {[%clk 0:00:06.2]} 44. R7d6+ {[%clk 0:00:26]} 44...
Kg7 {[%clk 0:00:06.3]} 45. Rxb6 {[%clk 0:00:26.5]} 45... Rcc1 {[%clk 0:00:05.5]}
46. Rb5 {[%clk 0:00:27]} 46... Rg1+ {[%clk 0:00:04.8]} 47. Kh2 {[%clk
0:00:27.5]} 47... Rg3 {[%clk 0:00:04.4]} 48. Rxa5 {[%clk 0:00:23.6]} 48... Rxf3
{[%clk 0:00:01.9]} 49. Rxg5+ {[%clk 0:00:23.4]} 49... Kh6 {[%clk 0:00:02.6]} 50.
Rg4 {[%clk 0:00:18.6]} 50... f5 {[%clk 0:00:01.6]} 51. Rxh4+ {[%clk 0:00:16]}
51... Kg5 {[%clk 0:00:02.5]} 52. Rb4 {[%clk 0:00:14.8]} 52... Rf1 {[%clk
0:00:02.8]} 53. Kg2 {[%clk 0:00:14.7]} 53... R1xf2+ {[%clk 0:00:01.1]} 54. Rxf2
{[%clk 0:00:15.6]} 54... Rc3 {[%clk 0:00:01.6]} 55. Rbf4 {[%clk 0:00:13.6]}
55... Rc5 {[%clk 0:00:01.6]} 56. Rxf5+ {[%clk 0:00:13.2]} 56... Rxf5 {[%clk
0:00:02.5]} 57. Rxf5+ {[%clk 0:00:14]} 57... Kxf5 {[%clk 0:00:03.4]} 58. a5
{[%clk 0:00:14.7]} 58... Ke5 {[%clk 0:00:04.3]} 59. a6 {[%clk 0:00:15.6]} 1-0

[Event "*** SCC Grand Prix: Titled Tuesday Blitz"]
[Site "Chess.com"]
[Date "2020.07.07"]
[Round "1"]
[White "mirochka"]
[Black "26andrej26"]
[Result "0-1"]
[WhiteElo "2129"]
[BlackElo "2520"]
[TimeControl "180+1"]
[EndTime "10:08:05 PDT"]
[Termination "26andrej26 won on time"]

1. e4 {[%clk 0:03:00.9]} 1... c5 {[%clk 0:02:59.9]} 2. b4 {[%clk 0:02:59.9]}
2... d5 {[%clk 0:02:47.2]} 3. exd5 {[%clk 0:02:43.5]} 3... Qxd5 {[%clk
0:02:46.4]} 4. Nc3 {[%clk 0:02:35.6]} 4... Qe5+ {[%clk 0:02:46.3]} 5. Be2 {[%clk
0:02:15.3]} 5... cxb4 {[%clk 0:02:44.1]} 6. d4 {[%clk 0:02:13]} 6... Qc7 {[%clk
0:02:37.5]} 7. Nb5 {[%clk 0:02:11.7]} 7... Qd8 {[%clk 0:02:37.4]} 8. Bf4 {[%clk
0:02:07]} 8... Na6 {[%clk 0:02:37.5]} 9. a3 {[%clk 0:02:00.3]} 9... Nf6 {[%clk
0:02:33.7]} 10. axb4 {[%clk 0:01:58.4]} 10... Nd5 {[%clk 0:02:34]} 11. Bg3
{[%clk 0:01:47.3]} 11... Nac7 {[%clk 0:02:34]} 12. Nxc7+ {[%clk 0:01:21.7]}
12... Nxc7 {[%clk 0:02:33.6]} 13. c4 {[%clk 0:01:21.3]} 13... e6 {[%clk
0:02:30.2]} 14. Qa4+ {[%clk 0:00:56.1]} 14... Bd7 {[%clk 0:02:28.8]} 15. Qb3
{[%clk 0:00:55.3]} 15... Be7 {[%clk 0:02:27.9]} 16. Nf3 {[%clk 0:00:54.7]} 16...
O-O {[%clk 0:02:27.4]} 17. O-O {[%clk 0:00:55.1]} 17... b5 {[%clk 0:02:24.4]}
18. Bxc7 {[%clk 0:00:41.8]} 18... Qxc7 {[%clk 0:02:23.9]} 19. c5 {[%clk
0:00:42.4]} 19... Bc6 {[%clk 0:02:21.3]} 20. Ne5 {[%clk 0:00:41.4]} 20... Bd5
{[%clk 0:02:21.5]} 21. Qe3 {[%clk 0:00:34.2]} 21... a6 {[%clk 0:02:20]} 22. Bf3
{[%clk 0:00:31.5]} 22... Rfd8 {[%clk 0:02:07.5]} 23. Rfd1 {[%clk 0:00:30.3]}
23... Bf6 {[%clk 0:02:07.5]} 24. Bxd5 {[%clk 0:00:27.5]} 24... Rxd5 {[%clk
0:02:07.1]} 25. f4 {[%clk 0:00:26.2]} 25... g6 {[%clk 0:01:58.5]} 26. Kh1 {[%clk
0:00:24.2]} 26... Rad8 {[%clk 0:01:57.8]} 27. Rxa6 {[%clk 0:00:21.4]} 27... Bxe5
{[%clk 0:01:57.4]} 28. fxe5 {[%clk 0:00:20.4]} 28... Qxe5 {[%clk 0:01:52.6]} 29.
Qxe5 {[%clk 0:00:18.1]} 29... Rxe5 {[%clk 0:01:52.9]} 30. Kg1 {[%clk 0:00:17.7]}
30... Re4 {[%clk 0:01:51.9]} 31. Rb6 {[%clk 0:00:17.8]} 31... Rdxd4 {[%clk
0:01:51.7]} 32. Rxd4 {[%clk 0:00:18.4]} 32... Rxd4 {[%clk 0:01:51.8]} 33. Rxb5
{[%clk 0:00:19.1]} 33... Rc4 {[%clk 0:01:31.6]} 34. Rb8+ {[%clk 0:00:16.9]}
34... Kg7 {[%clk 0:01:31.5]} 35. Rb6 {[%clk 0:00:16.1]} 35... Kf6 {[%clk
0:01:31.2]} 36. c6 {[%clk 0:00:15.8]} 36... Ke5 {[%clk 0:01:31.4]} 37. b5 {[%clk
0:00:16]} 37... Kd6 {[%clk 0:01:28.7]} 38. Rb7 {[%clk 0:00:15.9]} 38... e5
{[%clk 0:01:10.4]} 39. Rxf7 {[%clk 0:00:15.6]} 39... e4 {[%clk 0:01:01.9]} 40.
Rxh7 {[%clk 0:00:15.5]} 40... Rc2 {[%clk 0:01:00.6]} 41. Kf1 {[%clk 0:00:15.7]}
41... e3 {[%clk 0:01:00.4]} 42. Rg7 {[%clk 0:00:15]} 42... Kc5 {[%clk
0:00:43.3]} 43. Rxg6 {[%clk 0:00:13.6]} 43... Kxb5 {[%clk 0:00:42.8]} 44. h4
{[%clk 0:00:13.8]} 44... Kc4 {[%clk 0:00:37.2]} 45. c7 {[%clk 0:00:13]} 45...
Kd3 {[%clk 0:00:37.2]} 46. Rd6+ {[%clk 0:00:13.1]} 46... Ke4 {[%clk 0:00:37.6]}
47. Rd7 {[%clk 0:00:12.8]} 47... Kf4 {[%clk 0:00:35.2]} 48. Rd4+ {[%clk
0:00:08.4]} 48... Kg3 {[%clk 0:00:33.6]} 49. h5 {[%clk 0:00:07.5]} 49... Rxc7
{[%clk 0:00:31]} 50. Rd5 {[%clk 0:00:06.2]} 50... Rc1+ {[%clk 0:00:17.1]} 51.
Ke2 {[%clk 0:00:05]} 51... Rh1 {[%clk 0:00:14.3]} 52. Kxe3 {[%clk 0:00:02.2]}
52... Kxg2 {[%clk 0:00:14.4]} 53. Kf4 {[%clk 0:00:02]} 53... Kf2 {[%clk
0:00:11.1]} 54. Kg5 {[%clk 0:00:02]} 54... Kf3 {[%clk 0:00:11.5]} 55. Kg6 {[%clk
0:00:01.8]} 55... Ke4 {[%clk 0:00:12.1]} 0-1

[Event "*** SCC Grand Prix: Titled Tuesday Blitz"]
[Site "Chess.com"]
[Date "2020.07.07"]
[Round "1"]
[White "ChessWarrior7197"]
[Black "Bodnar_Mykola"]
[Result "1-0"]
[WhiteElo "2876"]
[BlackElo "2437"]
[TimeControl "180+1"]
[EndTime "10:08:08 PDT"]
[Termination "ChessWarrior7197 won on time"]

1. e4 {[%clk 0:03:00.9]} 1... e5 {[%clk 0:02:59.7]} 2. Nf3 {[%clk 0:03:00.7]}
2... Nc6 {[%clk 0:02:57.8]} 3. Bb5 {[%clk 0:03:00.5]} 3... g6 {[%clk 0:02:56.8]}
4. O-O {[%clk 0:02:59.5]} 4... Bg7 {[%clk 0:02:56.3]} 5. c3 {[%clk 0:03:00]}
5... a6 {[%clk 0:02:55.1]} 6. Ba4 {[%clk 0:02:59.7]} 6... b5 {[%clk 0:02:54.4]}
7. Bb3 {[%clk 0:02:58.2]} 7... Nge7 {[%clk 0:02:53.6]} 8. d4 {[%clk 0:02:58.4]}
8... exd4 {[%clk 0:02:54.5]} 9. cxd4 {[%clk 0:02:59.1]} 9... O-O {[%clk
0:02:55.1]} 10. h3 {[%clk 0:02:56.2]} 10... d6 {[%clk 0:02:52]} 11. Bg5 {[%clk
0:02:52.1]} 11... h6 {[%clk 0:02:51.1]} 12. Bh4 {[%clk 0:02:51]} 12... g5 {[%clk
0:02:49.1]} 13. Bg3 {[%clk 0:02:50.7]} 13... g4 {[%clk 0:02:36.8]} 14. hxg4
{[%clk 0:02:45.6]} 14... Bxg4 {[%clk 0:02:37.7]} 15. d5 {[%clk 0:02:46]} 15...
Nd4 {[%clk 0:02:36.2]} 16. Nbd2 {[%clk 0:02:45]} 16... f5 {[%clk 0:02:33.3]} 17.
e5 {[%clk 0:02:31.4]} 17... f4 {[%clk 0:02:19.7]} 18. exd6 {[%clk 0:02:22.3]}
18... cxd6 {[%clk 0:02:05.9]} 19. Bh4 {[%clk 0:02:21.4]} 19... Qd7 {[%clk
0:02:01.8]} 20. Bxe7 {[%clk 0:02:17.8]} 20... Qxe7 {[%clk 0:02:02.7]} 21. Re1
{[%clk 0:02:17.7]} 21... Qf7 {[%clk 0:01:55.7]} 22. Re4 {[%clk 0:02:13.4]} 22...
Rae8 {[%clk 0:01:45.9]} 23. Bc2 {[%clk 0:01:52.8]} 23... Qxd5 {[%clk 0:01:19.5]}
24. Rxe8 {[%clk 0:00:58.9]} 24... Rxe8 {[%clk 0:01:20.4]} 25. Bb3 {[%clk
0:00:59.3]} 25... Nxb3 {[%clk 0:01:19.6]} 26. axb3 {[%clk 0:00:58.7]} 26... a5
{[%clk 0:01:12.3]} 27. Qc2 {[%clk 0:00:54.4]} 27... Bf5 {[%clk 0:01:08.4]} 28.
Qc7 {[%clk 0:00:53.7]} 28... Rc8 {[%clk 0:00:41]} 29. Qxa5 {[%clk 0:00:51.6]}
29... Bxb2 {[%clk 0:00:40.7]} 30. Re1 {[%clk 0:00:51.6]} 30... Bc3 {[%clk
0:00:33]} 31. Qa2 {[%clk 0:00:50.8]} 31... Bb4 {[%clk 0:00:23.7]} 32. Qb2 {[%clk
0:00:41.8]} 32... Kf7 {[%clk 0:00:20.6]} 33. Rc1 {[%clk 0:00:38]} 33... Rxc1+
{[%clk 0:00:19.2]} 34. Qxc1 {[%clk 0:00:38.9]} 34... Qc5 {[%clk 0:00:19.3]} 35.
Qa1 {[%clk 0:00:37.9]} 35... Kg6 {[%clk 0:00:16.5]} 36. Nh4+ {[%clk 0:00:36.9]}
36... Kg5 {[%clk 0:00:16.4]} 37. Ndf3+ {[%clk 0:00:36.6]} 37... Kh5 {[%clk
0:00:14.6]} 38. Qf6 {[%clk 0:00:36.6]} 38... Bd3 {[%clk 0:00:08.2]} 39. Qf7+
{[%clk 0:00:34.4]} 39... Kg4 {[%clk 0:00:08.4]} 40. Qe6+ {[%clk 0:00:26.9]}
40... Kh5 {[%clk 0:00:08.2]} 41. Qh3 {[%clk 0:00:21.7]} 41... Qc1+ {[%clk
0:00:03.5]} 42. Kh2 {[%clk 0:00:21.9]} 42... Bc5 {[%clk 0:00:04]} 43. Nf5+
{[%clk 0:00:14.1]} 43... Kg6 {[%clk 0:00:03.4]} 44. N5d4 {[%clk 0:00:13.8]}
44... Bxd4 {[%clk 0:00:02.2]} 45. Nxd4 {[%clk 0:00:14.7]} 45... Qd2 {[%clk
0:00:02.9]} 46. Qe6+ {[%clk 0:00:14.6]} 46... Kh5 {[%clk 0:00:02.9]} 47. Qh3+
{[%clk 0:00:09.8]} 47... Kg5 {[%clk 0:00:03.1]} 48. Nf3+ {[%clk 0:00:09.6]} 1-0

[Event "*** SCC Grand Prix: Titled Tuesday Blitz"]
[Site "Chess.com"]
[Date "2020.07.07"]
[Round "1"]
[White "abhidabhi"]
[Black "chenxiaoyuer"]
[Result "1-0"]
[WhiteElo "2757"]
[BlackElo "2405"]
[TimeControl "180+1"]
[EndTime "10:08:08 PDT"]
[Termination "abhidabhi won by resignation"]

1. Nf3 {[%clk 0:03:00.9]} 1... Nf6 {[%clk 0:02:59.5]} 2. g3 {[%clk 0:03:01.4]}
2... g6 {[%clk 0:02:59.3]} 3. b3 {[%clk 0:03:02.1]} 3... Bg7 {[%clk 0:02:56.8]}
4. Bb2 {[%clk 0:03:03]} 4... O-O {[%clk 0:02:56.5]} 5. c4 {[%clk 0:03:03.5]}
5... d6 {[%clk 0:02:56.3]} 6. d4 {[%clk 0:03:03.3]} 6... Nfd7 {[%clk 0:02:34.8]}
7. Bg2 {[%clk 0:03:02.8]} 7... e5 {[%clk 0:02:34.6]} 8. dxe5 {[%clk 0:02:55]}
8... dxe5 {[%clk 0:02:33.6]} 9. Nc3 {[%clk 0:02:49.7]} 9... e4 {[%clk
0:02:21.3]} 10. Nd2 {[%clk 0:02:42.8]} 10... f5 {[%clk 0:02:16]} 11. O-O {[%clk
0:02:41.9]} 11... Ne5 {[%clk 0:02:09.7]} 12. Qc2 {[%clk 0:02:41]} 12... Nbc6
{[%clk 0:02:04.5]} 13. Nd5 {[%clk 0:02:37]} 13... Be6 {[%clk 0:02:00.8]} 14.
Rfd1 {[%clk 0:02:31]} 14... Bxd5 {[%clk 0:01:53.5]} 15. cxd5 {[%clk 0:02:30.8]}
15... Nb4 {[%clk 0:01:47.1]} 16. Qc5 {[%clk 0:02:28]} 16... Nbd3 {[%clk
0:01:17.5]} 17. exd3 {[%clk 0:02:14.2]} 17... Nxd3 {[%clk 0:01:17.3]} 18. Qc4
{[%clk 0:01:57.8]} 18... Nxb2 {[%clk 0:01:16.3]} 19. Qc2 {[%clk 0:01:55.3]}
19... Nxd1 {[%clk 0:01:16]} 20. Rxd1 {[%clk 0:01:54.5]} 20... Qe7 {[%clk
0:01:11.2]} 21. Nc4 {[%clk 0:01:54.4]} 21... Rfd8 {[%clk 0:01:08.6]} 22. f3
{[%clk 0:01:49.2]} 22... exf3 {[%clk 0:01:07.7]} 23. Bxf3 {[%clk 0:01:49.2]}
23... Qc5+ {[%clk 0:01:06.7]} 24. Qf2 {[%clk 0:01:23.5]} 24... Qxf2+ {[%clk
0:01:05.6]} 25. Kxf2 {[%clk 0:01:24.4]} 25... a5 {[%clk 0:00:59]} 26. d6 {[%clk
0:01:19]} 26... c6 {[%clk 0:00:53.3]} 27. a4 {[%clk 0:01:12.1]} 27... Bf8 {[%clk
0:00:47.9]} 28. g4 {[%clk 0:01:11.6]} 28... Ra7 {[%clk 0:00:36.2]} 29. gxf5
{[%clk 0:01:10.9]} 29... gxf5 {[%clk 0:00:32.4]} 30. d7 {[%clk 0:01:01.3]} 30...
Bg7 {[%clk 0:00:26]} 31. Nb6 {[%clk 0:00:52.1]} 31... Ra6 {[%clk 0:00:25.1]} 32.
Nc8 {[%clk 0:00:51.9]} 32... b5 {[%clk 0:00:24.7]} 33. Ne7+ {[%clk 0:00:50.8]}
33... Kf8 {[%clk 0:00:24.6]} 34. Nxc6 {[%clk 0:00:51]} 34... Rxc6 {[%clk
0:00:21.4]} 35. Bxc6 {[%clk 0:00:51.6]} 35... bxa4 {[%clk 0:00:22.2]} 36. bxa4
{[%clk 0:00:52.2]} 36... Bc3 {[%clk 0:00:22.3]} 37. Bb5 {[%clk 0:00:52.2]} 37...
Ke7 {[%clk 0:00:21.4]} 38. Rd3 {[%clk 0:00:52]} 38... Bf6 {[%clk 0:00:19.9]} 39.
Rh3 {[%clk 0:00:52]} 39... Rh8 {[%clk 0:00:18.7]} 40. Re3+ {[%clk 0:00:52.1]}
40... Kf7 {[%clk 0:00:18.5]} 41. Re8 {[%clk 0:00:52.2]} 41... Kg7 {[%clk
0:00:14.9]} 42. Kf3 {[%clk 0:00:51.5]} 42... Rf8 {[%clk 0:00:14.3]} 43. Kf4
{[%clk 0:00:51.3]} 43... Bd8 {[%clk 0:00:13.8]} 44. Bd3 {[%clk 0:00:50.3]} 44...
Bc7+ {[%clk 0:00:13.4]} 45. Kg5 {[%clk 0:00:50]} 45... Bd8+ {[%clk 0:00:13.2]}
46. Kf4 {[%clk 0:00:50]} 46... Bc7+ {[%clk 0:00:13.1]} 47. Kf3 {[%clk
0:00:50.2]} 47... Bd8 {[%clk 0:00:12.9]} 48. h3 {[%clk 0:00:48.3]} 48... Bc7
{[%clk 0:00:11.7]} 49. Bc4 {[%clk 0:00:48.4]} 49... Bd8 {[%clk 0:00:11.1]} 50.
Be6 {[%clk 0:00:48.6]} 50... Bc7 {[%clk 0:00:10.8]} 51. Bc4 {[%clk 0:00:41.2]}
51... Bd8 {[%clk 0:00:11]} 52. Bd5 {[%clk 0:00:41.5]} 52... Bc7 {[%clk
0:00:11.2]} 53. Re7+ {[%clk 0:00:41.8]} 53... Kf6 {[%clk 0:00:09.4]} 54. Rxh7
{[%clk 0:00:41.5]} 54... Rd8 {[%clk 0:00:09.2]} 55. Bc6 {[%clk 0:00:41.6]} 55...
Ke5 {[%clk 0:00:09.1]} 56. Bb5 {[%clk 0:00:41.4]} 56... Bb6 {[%clk 0:00:08.3]}
57. Re7+ {[%clk 0:00:41.6]} 57... Kd6 {[%clk 0:00:08]} 58. Re8 {[%clk 0:00:41]}
58... Kc5 {[%clk 0:00:07.8]} 59. h4 {[%clk 0:00:40.7]} 59... Kd6 {[%clk
0:00:07]} 60. h5 {[%clk 0:00:40.9]} 60... Kc7 {[%clk 0:00:07.9]} 61. h6 {[%clk
0:00:40.7]} 61... Bd4 {[%clk 0:00:08.7]} 62. h7 {[%clk 0:00:40.8]} 62... Bc3
{[%clk 0:00:08.4]} 63. Kf4 {[%clk 0:00:41]} 63... Bd4 {[%clk 0:00:08.2]} 64.
Kxf5 {[%clk 0:00:41.4]} 64... Bc3 {[%clk 0:00:08.6]} 65. Kg6 {[%clk 0:00:41.2]}
65... Bd4 {[%clk 0:00:09.2]} 66. Kf7 {[%clk 0:00:40.6]} 66... Bc3 {[%clk
0:00:09.7]} 67. Rxd8 {[%clk 0:00:40.5]} 67... Kxd8 {[%clk 0:00:09.6]} 68. Kg8
{[%clk 0:00:41.4]} 68... Bd4 {[%clk 0:00:09.1]} 1-0